fUSD/lending_fUSD_20260207
["ID","MTS","AMOUNT","RATE_DAILY","PERIOD"]
[404720262,1770491440357,-168956.03,0.000147,2]
[404720263,1770491440367,-33304.9777,0.00014713,2]
[404720264,1770491440376,-1000.0,0.00014713,2]
[404720265,1770491440386,-150.0,0.00014811,2]
[404720266,1770491440396,-150.0,0.00014811,2]
[404720267,1770491440405,-200.0,0.00014811,2]
[404720268,1770491440414,-150.0,0.00014811,2]
[404720269,1770491440427,-150.0,0.00014811,2]
[404720270,1770491440436,-500.0,0.00014811,2]
[404720271,1770491440446,-150.0,0.00014811,2]
[404720272,1770491440455,-150.0,0.00014811,2]
[404720273,1770491440464,-150.0,0.00014811,2]
[404720274,1770491440473,-232.92340475,0.00014811,2]
[404720275,1770491440482,-205.83867613,0.00014811,2]
[404720276,1770491440491,-500.0,0.00014811,2]
[404720277,1770491440501,-500.0,0.00014811,2]
[404720278,1770491440510,-150.0,0.00014866,2]
[404720279,1770491440520,-241.09659609,0.00014866,2]
[404720280,1770491440531,-200.0,0.00014866,2]
[404720281,1770491440541,-211.1146881,0.00014866,2]
[404720282,1770491440551,-150.0,0.00014866,2]
[404720283,1770491440561,-500.0,0.00014866,2]
[404720284,1770491440572,-150.0,0.00014866,2]
[404720285,1770491440582,-150.0,0.00014866,2]
[404720286,1770491440591,-500.0,0.00014866,2]
[404720287,1770491440601,-500.0,0.00014866,2]
[404720288,1770491440611,-150.0,0.00014921,2]
[404720289,1770491440620,-200.0,0.00014921,2]
[404720290,1770491440629,-221.24334971,0.00014921,2]
[404720291,1770491440639,-620.0,0.00014921,2]
[404720292,1770491440648,-250.0,0.00014921,2]
[404720293,1770491440657,-255.21716028,0.00014921,2]
[404720294,1770491440667,-512.0,0.00014921,2]
[404720295,1770491440677,-500.0,0.00014921,2]
[404720296,1770491440688,-150.0,0.00014975,2]
[404720297,1770491440698,-200.0,0.00014975,2]
[404720298,1770491440707,-500.0,0.00014975,2]
[404720299,1770491440717,-252.13556624,0.0001503,2]
[404720300,1770491440729,-201.42236302,0.0001503,2]
[404720301,1770491440739,-406.50348778,0.0001503,2]
[404720302,1770491440749,-500.0,0.00015373,2]
[404720303,1770491440759,-23867.77102428,0.00015382,2]
[404720304,1770491440768,-250.0,0.00015533,2]
[404720305,1770491440779,-311.8057918,0.00015533,2]
[404720306,1770491440788,-600.0,0.00015533,2]
[404720307,1770491440799,-300.0,0.00015533,2]
[404720308,1770491440809,-300.0,0.00015533,2]
[404720309,1770491440818,-195.0,0.00015753,2]
[404720310,1770491440827,-1000.0,0.00015886,2]
[404720311,1770491440837,-1220.0,0.00015961,2]
[404720312,1770491440848,-5150.72,0.00016671,2]
[404720313,1770491440858,-9999.99,0.00016922,2]
[404720314,1770491440868,-355.53,0.00016965,2]
[404720315,1770491440879,-500.0,0.00017,2]
[404720316,1770491440888,-150.0,0.00017009,2]
[404720317,1770491440898,-150.0,0.00017534,2]
[404720318,1770491440907,-236.64982179,0.00017534,2]
[404720319,1770491440916,-150.0,0.00017534,2]
[404720320,1770491440924,-200.0,0.00017589,2]
[404720321,1770491440933,-150.0,0.00017589,2]
[404720322,1770491440943,-161.16,0.00017609,2]
[404720323,1770491440952,-150.0,0.00017644,2]
[404720324,1770491440961,-1000.0,0.00017651,2]
[404720325,1770491440971,-163.0,0.0001768,2]
[404720326,1770491440980,-150.0,0.00017698,2]
[404720327,1770491440989,-189.24,0.00017711,2]
[404720328,1770491440999,-250.0,0.00017753,2]
[404720329,1770491441009,-1166.0,0.00017787,2]
[404720330,1770491441020,-3272.88057735,0.00017787,2]
[404720331,1770491441033,-500.0,0.00017808,2]
[404720332,1770491441046,-500.0,0.00017808,2]
[404720333,1770491441057,-500.0,0.00017808,2]
[404720334,1770491441068,-500.0,0.00017808,2]
[404720335,1770491441079,-500.0,0.00017808,2]
[404720336,1770491441089,-500.0,0.00017808,2]
[404720337,1770491441099,-500.0,0.00017808,2]
[404720338,1770491441109,-500.0,0.00017808,2]
[404720339,1770491441118,-500.0,0.00017808,2]
[404720340,1770491441128,-500.0,0.00017808,2]
[404720341,1770491441137,-500.0,0.00017808,2]
[404720342,1770491441147,-500.0,0.00017808,2]
[404720343,1770491441156,-500.0,0.00017808,2]
[404720344,1770491441166,-500.0,0.00017808,2]
[404720345,1770491441175,-500.0,0.00017808,2]
[404720346,1770491441187,-500.0,0.00017808,2]
[404720347,1770491441197,-500.0,0.00017808,2]
[404720348,1770491441206,-500.0,0.00017808,2]
[404720349,1770491441214,-500.0,0.00017808,2]
[404720350,1770491441223,-500.0,0.00017808,2]
[404720351,1770491441231,-500.0,0.00017808,2]
[404720352,1770491441240,-500.0,0.00017808,2]
[404720353,1770491441249,-500.0,0.00017808,2]
[404720354,1770491441259,-500.0,0.00017808,2]
[404720355,1770491441269,-500.0,0.00017808,2]
[404720356,1770491441279,-500.0,0.00017808,2]
[404720357,1770491441287,-500.0,0.00017808,2]
[404720358,1770491441297,-500.0,0.00017808,2]
[404720359,1770491441307,-500.0,0.00017808,2]
[404720360,1770491441317,-500.0,0.00017808,2]
[404720361,1770491441329,-500.0,0.00017808,2]
[404720362,1770491441339,-500.0,0.00017808,2]
[404720363,1770491441348,-500.0,0.00017808,2]
[404720364,1770491441358,-500.0,0.00017808,2]
[404720365,1770491441369,-604.4995296,0.00017808,2]
[404720366,1770491441380,-500.0,0.00017808,2]
[404720367,1770491441391,-500.0,0.00017808,2]
[404720368,1770491441401,-500.0,0.00017808,2]
[404720369,1770491441411,-500.0,0.00017808,2]
[404720370,1770491441421,-500.0,0.00017808,2]
[404720371,1770491441431,-500.0,0.00017808,2]
[404720372,1770491441441,-2128.64393099,0.00017837,2]
[404720373,1770491441451,-500.0,0.00017863,2]
[404720374,1770491441460,-500.0,0.000179,2]
[404720375,1770491441470,-500.0,0.00017918,2]
[404720376,1770491441480,-1166.0,0.0001797,2]
[404720377,1770491441492,-500.0,0.00017972,2]
[404720378,1770491441502,-1166.0,0.00017974,2]
[404720379,1770491441513,-500.0,0.00018027,2]
[404720380,1770491441523,-597.91426758,0.00018082,2]
[404720381,1770491441532,-1166.0,0.00018096,2]
[404720382,1770491441541,-1166.0,0.00018106,2]
[404720383,1770491441551,-1183.56340201,0.00018229,2]
[404720384,1770491441562,-1166.0,0.0001837,2]
[404720385,1770491441570,-1166.0,0.0001839,2]
[404720386,1770491441579,-150.0,0.00018393,2]
[404720387,1770491441587,-1166.0,0.00018572,2]
[404720388,1770491441595,-150.0,0.00018575,2]
[404720389,1770491441604,-1166.0,0.00018594,2]
[404720390,1770491441612,-1166.0,0.00018762,2]
[404720391,1770491441621,-766.15370913,0.0001881,3]
[404720392,1770491441630,-600.0,0.0001881,3]
[404720393,1770491441639,-1166.0,0.00018812,2]
[404720394,1770491441648,-1166.0,0.0001883,2]
[404720395,1770491441658,-1166.0,0.00019024,2]
[404720396,1770491441667,-1166.0,0.00019045,2]
[404720397,1770491441676,-1166.0,0.0001914,2]
[404720398,1770491441686,-1166.0,0.00019211,2]
[404720399,1770491441695,-1166.0,0.00019238,2]
[404720400,1770491441704,-1166.0,0.00019348,2]
[404720401,1770491441714,-1000.0,0.00019416,2]
[404720402,1770491441723,-1166.0,0.00019421,2]
[404720403,1770491441732,-164.8716732,0.00019477,2]
[404720404,1770491441742,-1166.0,0.00019489,2]
[404720405,1770491441751,-1166.0,0.0001953,2]
[404720406,1770491441761,-1166.0,0.00019563,2]
[404720407,1770491441770,-1166.0,0.00019575,2]
[404720408,1770491441779,-1166.0,0.00019578,2]
[404720409,1770491441789,-1166.0,0.00019583,2]
[404720410,1770491441799,-400.0,0.0001997,2]
[404720411,1770491441809,-550.0,0.0001997,2]
[404720412,1770491441818,-150.0,0.0002,7]
[404720413,1770491441828,-400.0,0.0002087,2]
[404720414,1770491441838,-400.0,0.0002087,2]
[404720415,1770491441847,-3272.88057735,0.00021031,2]
[404720416,1770491441856,-2128.64393099,0.00021074,2]
[404720417,1770491441866,-1000.0,0.00021182,2]
[404720418,1770491441876,-49944.1,0.00021425,2]
[404720419,1770491441885,-500.0,0.00021918,2]
[404720420,1770491441894,-500.0,0.00021973,2]
[404720421,1770491441904,-3558.43,0.00022,7]
[404720422,1770491441914,-16293.07,0.00022,2]
[404720423,1770491441924,-500.0,0.00022028,2]
[404720424,1770491441934,-489.40689815,0.00022082,2]
[404720425,1770491441951,-1000.0,0.00022117,7]
[404720426,1770491441961,-5008.15573244,0.0002228,2]
[404720427,1770491441971,-5000.0,0.0002228,2]
[404720428,1770491441980,-5000.0,0.0002228,2]
[404720429,1770491441990,-5000.0,0.0002228,2]
[404720430,1770491441999,-5000.0,0.0002228,2]
[404720431,1770491442009,-501.52124127,0.0002246,2]
[404720432,1770491442018,-500.0,0.0002246,2]
[404720433,1770491442029,-157.34916484,0.00022494,2]
[404720434,1770491442042,-160.0,0.00023,2]
[404720435,1770491442052,-1000.0,0.00023008,2]
[404720436,1770491442063,-1500.0,0.00023556,2]
[404720437,1770491442075,-20000.0,0.0002356,2]
[404720438,1770491442084,-4627.7,0.00023994,2]
[404720439,1770491442094,-2000.0,0.00024104,2]
[404720440,1770491442104,-3272.88057735,0.00024274,2]
[404720441,1770491442114,-2128.64393099,0.00024312,2]
[404720442,1770491442127,-157.34916484,0.00024369,2]
[404720443,1770491442143,-164.8716732,0.00024391,2]
[404720444,1770491442163,-1869.28825225,0.00024652,2]
[404720445,1770491442181,-1000.0,0.00024658,2]
[404720446,1770491442193,-289.68,0.00024658,2]
[404720447,1770491442203,-3558.43,0.00025,7]
[404720448,1770491442213,-355.53,0.00025854,2]
[404720449,1770491442225,-495.91332241,0.00025869,2]
[404720450,1770491442237,-157.34916484,0.00026243,2]
[404720451,1770491442246,-16293.07,0.000266,2]
[404720452,1770491442260,-210.92,0.000266,14]
[404720453,1770491442278,-161.16,0.0002678,2]
[404720454,1770491442292,-189.24,0.00026981,2]
[404720455,1770491442314,-3240.0,0.00027121,2]
[404720456,1770491442335,-289.68,0.00027397,2]
[404720457,1770491442358,-3272.88057735,0.00027518,2]
[404720458,1770491442378,-2128.64393099,0.00027549,2]
[404720459,1770491442392,-157.34916484,0.00028118,2]
[404720460,1770491442405,-651.4441062,0.00029229,2]
[404720461,1770491442419,-164.8716732,0.00029305,2]
[404720462,1770491442432,-917.837,0.00029448,2]
[404720463,1770491442444,-1206.0,0.00029448,2]
[404720464,1770491442457,-2447.0,0.00029448,2]
[404720465,1770491442469,-3255.0,0.00029448,2]
[404720466,1770491442481,-6584.0,0.00029448,2]
[404720467,1770491442491,-200.0,0.00029789,2]
[404720468,1770491442502,-151.0,0.00029789,2]
[404720469,1770491442514,-267.0,0.00029789,2]
[404720470,1770491442526,-218.167,0.00029789,2]
[404720471,1770491442535,-229.965,0.00029789,2]
[404720473,1770491442546,-250.0,0.00029789,2]
[404720475,1770491442556,-225.99,0.00029789,2]
[404720477,1770491442567,-159.021,0.00029789,2]
[404720478,1770491442578,-250.0,0.00029789,2]
[404720479,1770491442589,-191.746,0.00029815,2]
[404720481,1770491442599,-164.487,0.00029815,2]
[404720482,1770491442610,-250.0,0.00029815,2]
[404720483,1770491442620,-212.873,0.00029815,2]
[404720484,1770491442630,-232.546,0.00029815,2]
[404720485,1770491442640,-172.0,0.00029815,2]
[404720486,1770491442651,-3483.0,0.00029815,2]
[404720487,1770491442661,-616.0,0.00029815,2]
[404720488,1770491442672,-1341.461,0.00029815,2]
[404720489,1770491442683,-1411.0,0.00029815,2]
[404720490,1770491442694,-1274.706,0.00029815,2]
[404720491,1770491442705,-251.149,0.00029815,2]
[404720492,1770491442714,-157.34916484,0.00029992,2]
[404720493,1770491442723,-180.37640608,0.0003,2]
[404720494,1770491442732,-289.68,0.00030137,2]
[404720495,1770491442742,-3272.88057735,0.00030761,2]
[404720496,1770491442751,-2128.64393099,0.00030786,2]
[404720497,1770491442992,-3558.43,0.000318,7]
[404720498,1770491443002,-160.0,0.000318,7]
[404720499,1770491443012,-16293.07,0.000318,2]
[404720500,1770491443021,-157.34916484,0.00031867,2]
[404720501,1770491443030,-355.53,0.00032124,2]
[404720502,1770491443044,-5000.0,0.0003228,2]
[404720503,1770491443054,-5000.0,0.0003228,2]
[404720504,1770491443063,-917.0,0.00032448,2]
[404720505,1770491443072,-1206.0,0.00032448,2]
[404720506,1770491443083,-2447.0,0.00032448,2]
[404720507,1770491443093,-3255.0,0.00032448,2]
[404720508,1770491443102,-6584.0,0.00032448,2]
[404720509,1770491443113,-507.0,0.00032616,2]
[404720510,1770491443125,-161.16,0.0003269,2]
[404720511,1770491443136,-150.0,0.00032789,2]
[404720512,1770491443145,-150.0,0.00032789,2]
[404720513,1770491443156,-150.0,0.00032789,2]
[404720514,1770491443166,-150.0,0.00032789,2]
[404720515,1770491443176,-150.0,0.00032789,2]
[404720516,1770491443186,-150.0,0.00032789,2]
[404720517,1770491443196,-150.0,0.00032789,2]
[404720518,1770491443205,-150.0,0.00032789,2]
[404720519,1770491443214,-150.0,0.00032815,2]
[404720520,1770491443223,-150.0,0.00032815,2]
[404720521,1770491443233,-150.0,0.00032815,2]
[404720522,1770491443244,-3483.0,0.00032815,2]
[404720523,1770491443254,-616.0,0.00032815,2]
[404720524,1770491443264,-1335.0,0.00032815,2]
[404720525,1770491443274,-1411.0,0.00032815,2]
[404720526,1770491443283,-1272.0,0.00032815,2]
[404720527,1770491443292,-289.68,0.00032877,2]
[404720529,1770491443301,-189.24,0.00032888,2]
[404720531,1770491443311,-171.11,0.000329,14]
[404720532,1770491443320,-1450.96,0.000329,2]
[404720534,1770491443330,-177.51,0.000329,14]
[404720537,1770491443339,-375.325301,0.00033,14]
[404720540,1770491443348,-428.0,0.000334,2]
[404720543,1770491443358,-157.34916484,0.00033742,2]
[404720545,1770491443367,-507.0,0.00033772,3]
[404720546,1770491443376,-150.0,0.00033873,5]
[404720547,1770491443386,-150.0,0.00033873,5]
[404720548,1770491443396,-3272.88057735,0.00034005,2]
[404720549,1770491443405,-2128.64393099,0.00034023,2]
[404720550,1770491443415,-164.8716732,0.00034218,2]
[404720551,1770491443424,-250.0,0.00034421,5]
[404720552,1770491443434,-250.0,0.00034421,5]
[404720553,1770491443443,-5530.0,0.000347,3]
[404720554,1770491443453,-400.0,0.0003487,2]
[404720555,1770491443462,-16293.07,0.000349,2]
[404720556,1770491443472,-150.0,0.00034904,2]
[404720557,1770491443483,-507.0,0.00034928,4]
[404720558,1770491443493,-350.0,0.00034968,5]
[404720559,1770491443502,-287.66363463,0.00034968,5]
[404720560,1770491443511,-500.0,0.00035,2]
[404720561,1770491443521,-917.0,0.00035448,2]
[404720562,1770491443531,-1205.735,0.00035448,2]
[404720563,1770491443540,-2447.0,0.00035448,2]
[404720564,1770491443550,-3255.0,0.00035448,2]
[404720565,1770491443559,-6584.0,0.00035448,2]
[404720566,1770491443568,-494.49066866,0.00035516,5]
[404720567,1770491443577,-150.0,0.00035562,7]
[404720568,1770491443586,-150.0,0.00035562,7]
[404720569,1770491443596,-3558.43,0.000356,14]
[404720570,1770491443606,-454.38660406,0.00035616,7]
[404720571,1770491443615,-289.68,0.00035616,2]
[404720572,1770491443624,-150.0,0.00035671,4]
[404720573,1770491443634,-150.0,0.00035671,4]
[404720574,1770491443643,-150.71004244,0.00035673,5]
[404720575,1770491443652,-300.44649809,0.00035673,5]
[404720576,1770491443661,-300.0,0.0003574,4]
[404720577,1770491443671,-300.0,0.0003574,4]
[404720578,1770491443680,-150.0,0.00035789,2]
[404720579,1770491443690,-150.0,0.00035789,2]
[404720580,1770491443699,-150.0,0.00035795,4]
[404720581,1770491443708,-150.0,0.00035795,4]
[404720582,1770491443717,-150.0,0.00035815,2]
[404720583,1770491443727,-3483.0,0.00035815,2]
[404720584,1770491443736,-616.0,0.00035815,2]
[404720585,1770491443746,-1335.0,0.00035815,2]
[404720586,1770491443755,-1272.0,0.00035815,2]
[404720587,1770491443765,-150.0,0.00035836,6]
[404720588,1770491443774,-150.0,0.00035836,6]
[404720589,1770491443784,-199.9806,0.00035888,30]
[404720590,1770491443793,-1450.96,0.000359,2]
[404720591,1770491443803,-177.51,0.000359,14]
[404720592,1770491443812,-281.25,0.000359,30]
[404720593,1770491443822,-300.0,0.0003597,2]
[404720594,1770491443831,-400.0,0.0003597,2]
[404720595,1770491443841,-522.6,0.00036,30]
[404720596,1770491443851,-5530.0,0.00036,5]
[404720597,1770491443860,-507.0,0.00036084,6]
[404720598,1770491443869,-199.9806,0.00036088,30]
[404720599,1770491443877,-2960.989,0.00036199,44]
[404720600,1770491443886,-234.597,0.00036199,44]
[404720601,1770491443895,-1600.0,0.00036243,120]
[404720602,1770491443903,-199.9806,0.00036288,30]
[404720603,1770491443910,-199.9806,0.00036488,30]
[404720604,1770491443917,-150.0,0.00036649,2]
[404720605,1770491443926,-199.9806,0.00036688,30]
[404720606,1770491443932,-169.28606237,0.000367,120]
[404720607,1770491443941,-522.6,0.0003672,30]
[404720608,1770491443951,-199.9806,0.00036888,30]
[404720609,1770491443960,-666.602,0.00036888,7]
[404720610,1770491443970,-1307.13,0.00037067,120]
[404720611,1770491443979,-199.9806,0.00037088,30]
[404720612,1770491443989,-152.0,0.00037198,3]
[404720613,1770491443999,-174.240804,0.00037219,60]
[404720614,1770491444009,-507.0,0.00037239,7]
[404720615,1770491444019,-3272.88057735,0.00037248,2]
[404720616,1770491444028,-2128.64393099,0.00037261,2]
[404720617,1770491444043,-199.9806,0.00037288,30]
[404720618,1770491444053,-1450.96,0.000374,2]
[404720619,1770491444062,-177.51,0.000374,14]
[404720620,1770491444072,-281.25,0.000374,30]
[404720621,1770491444083,-522.6,0.0003744,30]
[404720622,1770491444093,-199.9806,0.00037488,30]
[404720623,1770491444104,-199.9806,0.00037688,30]
[404720624,1770491444114,-255.87821251,0.00037836,30]
[404720625,1770491444124,-199.9806,0.00037888,30]
[404720626,1770491444134,-199.9806,0.00038088,30]
[404720627,1770491444144,-522.6,0.0003816,30]
[404720628,1770491444154,-199.9806,0.00038288,30]
[404720629,1770491444164,-276.59215114,0.00038356,120]
[404720630,1770491444175,-295.63620256,0.00038356,60]
[404720631,1770491444187,-500.0,0.00038356,60]
[404720632,1770491444196,-507.0,0.00038395,9]
[404720633,1770491444206,-500.0,0.00038411,60]
[404720634,1770491444216,-2447.0,0.00038448,2]
[404720635,1770491444225,-3255.0,0.00038448,2]
[404720636,1770491444234,-5151.362,0.00038448,2]
[404720637,1770491444243,-500.0,0.00038466,60]
[404720638,1770491444253,-150.0,0.00038482,2]
[404720639,1770491444263,-199.9806,0.00038488,30]
[404720640,1770491444273,-500.0,0.0003852,60]
[404720641,1770491444283,-500.0,0.00038575,60]
[404720642,1770491444293,-158.01,0.00038579,2]
[404720643,1770491444302,-1450.96,0.000386,30]
[404720644,1770491444313,-500.0,0.0003863,60]
[404720645,1770491444324,-500.0,0.00038685,60]
[404720646,1770491444335,-199.9806,0.00038688,30]
[404720647,1770491444345,-500.0,0.000387,120]
[404720648,1770491444355,-500.0,0.000387,120]
[404720649,1770491444364,-500.0,0.000387,120]
[404720650,1770491444375,-500.0,0.000387,120]
[404720651,1770491444385,-500.0,0.000387,120]
[404720652,1770491444394,-177.51,0.000387,14]
[404720653,1770491444405,-500.0,0.0003874,60]
[404720654,1770491444415,-158.01,0.00038764,2]
[404720655,1770491444424,-302.0,0.00038789,2]
[404720656,1770491444434,-150.0,0.00038789,2]
[404720657,1770491444443,-150.0,0.00038789,4]
[404720658,1770491444453,-150.0,0.00038789,4]
[404720659,1770491444462,-150.0,0.00038789,7]
[404720660,1770491444471,-500.0,0.00038794,60]
[404720661,1770491444481,-720.378,0.00038815,2]
[404720662,1770491444491,-616.0,0.00038815,2]
[404720663,1770491444500,-305.49465499,0.00038849,60]
[404720664,1770491444510,-522.6,0.0003888,120]
[404720665,1770491444519,-281.25,0.000389,30]
[404720666,1770491444529,-158.01,0.00038948,2]
[404720667,1770491444538,-214.89,0.00039082,2]
[404720668,1770491444548,-199.9806,0.00039088,30]
[404720669,1770491444559,-164.8716732,0.00039132,2]
[404720670,1770491444570,-199.9806,0.00039288,30]
[404720671,1770491444579,-252.33,0.00039397,2]
[404720672,1770491444589,-199.9806,0.00039488,30]
[404720673,1770491444598,-507.0,0.00039551,10]
[404720674,1770491444609,-150.0,0.00039563,2]
[404720675,1770491444619,-150.0,0.00039563,2]
[404720676,1770491444630,-150.0,0.00039563,2]
[404720677,1770491444640,-150.0,0.00039563,2]
[404720678,1770491444651,-150.0,0.00039563,2]
[404720679,1770491444660,-150.0,0.00039563,2]
[404720680,1770491444670,-150.0,0.00039563,2]
[404720681,1770491444679,-150.0,0.00039563,2]
[404720682,1770491444691,-150.0,0.00039563,2]
[404720683,1770491444701,-150.0,0.00039563,2]
[404720684,1770491444711,-150.0,0.00039563,2]
[404720685,1770491444720,-150.0,0.00039563,2]
[404720686,1770491444731,-150.0,0.00039563,2]
[404720687,1770491444741,-150.0,0.00039563,2]
[404720688,1770491444750,-150.0,0.00039563,2]
[404720689,1770491444761,-150.0,0.00039563,2]
[404720690,1770491444770,-150.0,0.00039563,2]
[404720691,1770491444780,-218.0,0.00039563,2]
[404720692,1770491444790,-150.0,0.00039563,4]
[404720693,1770491444799,-150.0,0.00039563,4]
[404720694,1770491444809,-150.0,0.00039563,4]
[404720695,1770491444818,-150.0,0.00039563,4]
[404720696,1770491444828,-150.0,0.00039563,4]
[404720697,1770491444838,-150.0,0.00039563,4]
[404720698,1770491444847,-150.0,0.00039563,4]
[404720699,1770491444857,-150.0,0.00039563,4]
[404720700,1770491444866,-150.0,0.00039563,4]
[404720701,1770491444876,-150.0,0.00039563,4]
[404720702,1770491444885,-150.0,0.00039563,4]
[404720703,1770491444895,-150.0,0.00039563,4]
[404720704,1770491444904,-150.0,0.00039563,4]
[404720705,1770491444914,-150.0,0.00039563,4]
[404720706,1770491444923,-150.0,0.00039563,4]
[404720707,1770491444932,-150.0,0.00039563,4]
[404720708,1770491444941,-150.0,0.00039563,4]
[404720709,1770491444951,-150.0,0.00039563,4]
[404720710,1770491444961,-150.0,0.00039563,4]
[404720711,1770491444970,-150.0,0.00039563,4]
[404720712,1770491444980,-150.0,0.00039563,4]
[404720713,1770491444990,-150.0,0.00039563,4]
[404720714,1770491444999,-150.0,0.00039563,4]
[404720716,1770491445009,-150.0,0.00039563,5]
[404720717,1770491445019,-150.0,0.00039563,5]
[404720718,1770491445028,-150.0,0.00039563,5]
[404720719,1770491445043,-150.0,0.00039563,5]
[404720720,1770491445053,-203.0,0.00039563,5]
[404720721,1770491445062,-150.0,0.00039563,7]
[404720722,1770491445071,-150.0,0.00039563,7]
[404720723,1770491445080,-150.0,0.00039563,7]
[404720724,1770491445090,-150.0,0.00039563,7]
[404720725,1770491445101,-150.0,0.00039563,7]
[404720726,1770491445111,-150.0,0.00039563,7]
[404720727,1770491445121,-150.0,0.00039563,7]
[404720728,1770491445131,-150.0,0.00039563,7]
[404720729,1770491445142,-150.0,0.00039563,7]
[404720730,1770491445152,-150.0,0.00039563,7]
[404720731,1770491445161,-150.0,0.00039563,7]
[404720732,1770491445171,-150.0,0.00039563,8]
[404720733,1770491445181,-150.0,0.00039563,8]
[404720734,1770491445192,-150.0,0.00039563,9]
[404720735,1770491445202,-150.0,0.00039563,9]
[404720736,1770491445212,-180.0,0.00039563,10]
[404720737,1770491445222,-522.6,0.000396,120]
[404720738,1770491445232,-199.9806,0.00039688,30]
[404720739,1770491445241,-1555.65160634,0.00039728,2]
[404720740,1770491445251,-301.00005478,0.00039728,2]
[404720741,1770491445261,-301.07727531,0.00039728,2]
[404720742,1770491445270,-302.09009539,0.00039728,2]
[404720743,1770491445279,-301.35929653,0.00039728,2]
[404720744,1770491445288,-534.9150651,0.00039728,2]
[404720745,1770491445299,-301.12507782,0.00039728,2]
[404720746,1770491445307,-300.0,0.00039728,2]
[404720747,1770491445317,-1555.65160634,0.00039728,2]
[404720748,1770491445326,-199.9806,0.00039888,30]
[404720749,1770491445335,-234.23,0.0004,120]
[404720750,1770491445344,-1369.64,0.0004,120]
[404720751,1770491445353,-868.0,0.0004,120]
[404720752,1770491445363,-571.9,0.0004,120]
[404720753,1770491445372,-686.42,0.0004,120]
[404720754,1770491445382,-5000.0,0.0004,5]
[404720755,1770491445392,-316.48,0.0004,120]
[404720756,1770491445402,-356.54,0.0004,120]
[404720757,1770491445413,-256.07,0.0004,120]
[404720758,1770491445423,-5000.0,0.0004,4]
[404720759,1770491445433,-250.0,0.0004,45]
[404720760,1770491445442,-5024.43680042,0.0004,6]
[404720761,1770491445452,-152.0,0.0004,120]
[404720762,1770491445462,-500.0,0.0004,2]
[404720763,1770491445471,-250.0,0.0004,45]
[404720764,1770491445480,-154.0,0.0004,120]
[404720765,1770491445490,-2000.0,0.0004,120]
[404720766,1770491445500,-160.0,0.0004,120]
[404720767,1770491445509,-199.9806,0.00040088,30]
[404720768,1770491445520,-281.25,0.000401,30]
[404720769,1770491445529,-199.9806,0.00040288,30]
[404720770,1770491445538,-150.0,0.00040406,2]
[404720771,1770491445547,-300.080309,0.00040458,101]
[404720772,1770491445556,-199.9806,0.00040488,30]
[404720773,1770491445566,-3272.88057735,0.00040492,15]
[404720774,1770491445576,-2128.64393099,0.00040498,15]
[404720775,1770491445586,-250.0,0.000405,45]
[404720776,1770491445597,-199.9806,0.00040688,30]